Workbook

Sheet прилож. № 7
A1: Приложение № 2
A2: к решению Думы Ушаковского муниципального образования от 25.10.2018 г. № 137 "О внесении изменений в решение Думы Ушаковского муниципального образования № 66 от 08.12.2017 г. "Об утверждении бюджета на 2018 г. и на плановый период 2019-2020 годов"
A4: РАСПРЕДЕЛЕНИЕ БЮДЖЕТНЫХ АССИГНОВАНИЙ ПО РАЗДЕЛАМ, ПОДРАЗДЕЛАМ, ЦЕЛЕВЫМ СТАТЬЯМ (МУНИЦИПАЛЬНЫМ ПРОГРАММАМ И НЕПРОГРАММНЫМ НАПРАВЛЕНИЯМ ДЕЯТЕЛЬНОСТИ) И ВИДАМ РАСХОДОВ КЛАССИФИКАЦИИ РАСХОДОВ БЮДЖЕТОВ НА 2018 ГОД
A6: Наименование | B6: РЗ | C6: Пр | D6: КЦСР | E6: КВР | F6: Сумма (тыс. руб)
A7: В С Е Г О | F7: =F8+F94+F104+F113+F134+F173+F191+F208 -> 89913.9
A8: ОБЩЕГОСУДАРСТВЕННЫЕ ВОПРОСЫ | B8: 01 | C8: 00 | D8: 00.0.00.00000 | E8: 000 | F8: =F9+F44+F83+F33+F90 -> 24366.9
A9: Функционирование высшего должностного лица субъекта Российской Федерации и муниципального образования | B9: 01 | C9: 02 | D9: 00.0.00.00000 | E9: 000 | F9: =F10 -> 1826.3
A10: Непрограммные расходы органов местного самоуправления | B10: 01 | C10: 02 | D10: 91.0.00.00000 | E10: 000 | F10: =F11+F18 -> 1826.3
A11: Непрограммные расходы органов местного самоуправления за счет средств местного бюджета | B11: 01 | C11: 02 | D11: 91.1.00.00000 | E11: 000 | F11: =F12 -> 1826.3
A12: Осуществление органами местного самоуправления полномочий местного значения поселения | B12: 01 | C12: 02 | D12: 91.1.00.60000 | E12: 000 | F12: =F13 -> 1826.3
A13: Обеспечение деятельности в сфере установленных функций | B13: 01 | C13: 02 | D13: 91.1.00.60001 | E13: 000 | F13: =F16+F17+F32 -> 1826.3
A14: Расходы на выплаты персоналу в целях обеспечения выполнения функций государственными (муниципальными) органами, казенными учреждениями, органами управления государственными внебюджетными фондами | B14: 01 | C14: 02 | D14: 91.1.00.60001 | E14: 100 | F14: =F15 -> 1826.3
A15: Расходы на выплаты персоналу государственных (муниципальных) органов | B15: 01 | C15: 02 | D15: 91.1.00.60001 | E15: 120 | F15: =F16+F17+F32 -> 1826.3
A16: Фонд оплаты труда государственных (муниципальных) органов | B16: 01 | C16: 02 | D16: 91.1.00.60001 | E16: 121 | F16: 1413.1
A17: Взносы по обязательному социальному страхованию на выплаты денежного содержания и иные выплаты работникам государственных (муниципальных) органов | B17: 01 | C17: 02 | D17: 91.1.00.60001 | E17: 129 | F17: 343.2
A18: Непрограммные расходы органов местного самоуправления за счет средств областного бюджета | B18: 01 | C18: 02 | D18: 91.1.00.60003 | E18: 000 | F18: =F19 -> 0.0
A19: Субсидии на выравнивание обеспеченности муниципальных образований Иркутской области по реализации ими их отдельных расходных обязательств | B19: 01 | C19: 02 | D19: 91.1.00.60004 | E19: 000 | F19: =F20 -> 0.0
A20: Расходы на выплаты персоналу в целях обеспечения выполнения функций государственными (муниципальными) органами, казенными учреждениями, органами управления государственными внебюджетными фондами | B20: 01 | C20: 02 | D20: 91.1.00.60005 | E20: 100 | F20: =F21 -> 0.0
A21: Расходы на выплаты персоналу государственных (муниципальных) органов | B21: 01 | C21: 02 | D21: 91.1.00.60006 | E21: 120 | F21: =F22+F23 -> 0.0
A22: Фонд оплаты труда государственных (муниципальных) органов | B22: 01 | C22: 02 | D22: 91.1.00.60007 | E22: 121 | F22: 0.0
A23: Взносы по обязательному социальному страхованию на выплаты денежного содержания и иные выплаты работникам государственных (муниципальных) органов | B23: 01 | C23: 02 | D23: 91.1.00.60008 | E23: 129 | F23: 0.0
A24: Функционирование Правительства Российской Федерации, высших исполнительных органов государственной власти субъектов РФ, местных администраций | B24: 01 | C24: 04 | D24: 91.1.00.60009 | E24: 000 | F24: =F44+F25 -> 18638.2
A25: Программные расходы | B25: 01 | C25: 04 | D25: 91.1.00.60010 | E25: 000 | F25: =F26 -> 0.0
A26: Муниципальная программа "Подготовка к празднованию 70-летия победы" | B26: 01 | C26: 04 | D26: 91.1.00.60011 | E26: 000 | F26: 0.0
A27: Реализация мероприятий муниципальной программы за счет средств местного бюджета | B27: 01 | C27: 04 | D27: 91.1.00.60012 | E27: 000 | F27: 0.0
A28: Мероприятия, связанные, с подготовкой к празднованию 70-летия победы | B28: 01 | C28: 04 | D28: 91.1.00.60013 | E28: 000 | F28: 0.0
A29: Закупка товаров, работ и услуг для обеспечения государственных (муниципальных) нужд | B29: 01 | C29: 04 | D29: 91.1.00.60014 | E29: 200 | F29: 0.0
A30: Иные закупки товаров, работ и услуг для обеспечения государственных (муниципальных) нужд | B30: 01 | C30: 04 | D30: 91.1.00.60015 | E30: 240 | F30: 0.0
A31: Прочая закупка товаров, работ и услуг для обеспечения государственных (муниципальных) нужд | B31: 01 | C31: 04 | D31: 91.1.00.60016 | E31: 244
A32: Иные выплаты персоналу государственных (муниципальных) органов, за исключением фонда оплаты труда | B32: 01 | C32: 02 | D32: 91.1.00.60001 | E32: 122 | F32: =100-30 -> 70.0
A33: Функционирование законодательных (представительных) органов государственной власти и представительных органов муниципальных образований | B33: 01 | C33: 03 | D33: 91.1.00.00000 | E33: 000 | F33: =F34 -> 948.4
A34: Непрограммные расходы органов местного самоуправления за счет средств местного бюджета | B34: 01 | C34: 03 | D34: 91.1.00.00000 | E34: 000 | F34: =F35 -> 948.4
A35: Осуществление органами местного самоуправления полномочий местного значения поселения | B35: 01 | C35: 03 | D35: 91.1.00.60000 | E35: 000 | F35: =F36 -> 948.4
A36: Обеспечение деятельности в сфере установленных функций | B36: 01 | C36: 03 | D36: 91.1.00.60001 | E36: 000 | F36: =F37+F41 -> 948.4
A37: Расходы на выплаты персоналу в целях обеспечения выполнения функций государственными (муниципальными) органами, казенными учреждениями, органами управления государственными внебюджетными фондами | B37: 01 | C37: 03 | D37: 91.1.00.60001 | E37: 100 | F37: =F38 -> 918.4
A38: Расходы на выплаты персоналу государственных (муниципальных) органов | B38: 01 | C38: 03 | D38: 91.1.00.60001 | E38: 120 | F38: =F39+F40 -> 918.4
A39: Фонд оплаты труда государственных (муниципальных) органов | B39: 01 | C39: 03 | D39: 91.1.00.60001 | E39: 121 | F39: =587.9+117 -> 704.9
A40: Взносы по обязательному социальному страхованию на выплаты денежного содержания и иные выплаты работникам государственных (муниципальных) органов | B40: 01 | C40: 03 | D40: 91.1.00.60001 | E40: 129 | F40: =177.5+36 -> 213.5
A41: Иные бюджетные ассигнования | B41: 01 | C41: 03 | D41: 91.1.00.60001 | E41: 800 | F41: =F43 -> 30.0
A42: Уплата налогов,сборов и иных платежей | B42: 01 | C42: 03 | D42: 91.1.00.60001 | E42: 850 | F42: 30.0
A43: Уплата иных платежей | B43: 01 | C43: 03 | D43: 91.1.00.60001 | E43: 853 | F43: 30.0
A44: Непрограммные расходы органов местного самоуправления | B44: 01 | C44: 04 | D44: 91.0.00.00000 | E44: 000 | F44: =F45+F62 -> 18638.2
A45: Непрограммные расходы органов местного самоуправления за счет средств местного бюджета | B45: 01 | C45: 04 | D45: 91.1.00.00000 | E45: 000 | F45: =F46 -> 18637.5
A46: Осуществление органами местного самоуправления полномочий местного значения поселения | B46: 01 | C46: 04 | D46: 91.1.00.60000 | E46: 000 | F46: =F47 -> 18637.5
A47: Обеспечение деятельности в сфере установленных функций | B47: 01 | C47: 04 | D47: 91.1.00.60001 | E47: 000 | F47: =F48+F51+F53+F56 -> 18637.5
A48: Расходы на выплаты персоналу в целях обеспечения выполнения функций государственными (муниципальными) органами, казенными учреждениями, органами управления государственными внебюджетными фондами | B48: 01 | C48: 04 | D48: 91.1.00.60001 | E48: 100 | F48: =F49 -> 13064.2
A49: Расходы на выплаты персоналу государственных (муниципальных) органов | B49: 01 | C49: 04 | D49: 91.1.00.60001 | E49: 120 | F49: =F50+F52 -> 13064.2
A50: Фонд оплаты труда государственных (муниципальных) органов | B50: 01 | C50: 04 | D50: 91.1.00.60001 | E50: 121 | F50: 10034.0
A51: Иные выплаты персоналу государственных (муниципальных) органов, за исключением фонда оплаты труда | B51: 01 | C51: 04 | D51: 91.1.00.60002 | E51: 122 | F51: 60.0
A52: Взносы по обязательному социальному страхованию на выплаты денежного содержания и иные выплаты работникам государственных (муниципальных) органов | B52: 01 | C52: 04 | D52: 91.1.00.60001 | E52: 129 | F52: 3030.2
A53: Закупка товаров, работ и услуг для обеспечения государственных (муниципальных) нужд | B53: 01 | C53: 04 | D53: 91.1.00.60001 | E53: 200 | F53: =F54 -> 5212.0
A54: Иные закупки товаров, работ и услуг для обеспечения государственных (муниципальных) нужд | B54: 01 | C54: 04 | D54: 91.1.00.60001 | E54: 240 | F54: =F55 -> 5212.0
A55: Прочая закупка товаров, работ и услуг для обеспечения государственных (муниципальных) нужд | B55: 01 | C55: 04 | D55: 91.1.00.60001 | E55: 244 | F55: 5212.0
A56: Иные бюджетные ассигнования | B56: 01 | C56: 04 | D56: 91.1.00.60001 | E56: 800 | F56: =F57+F60 -> 301.3
A57: Уплата налогов,сборов и иных платежей | B57: 01 | C57: 04 | D57: 91.1.00.60001 | E57: 850 | F57: =F58+F59 -> 71.0
A58: Уплата прочих налогов, сборов | B58: 01 | C58: 04 | D58: 91.1.00.60001 | E58: 852 | F58: 16.0
A59: Уплата иных платежей | B59: 01 | C59: 04 | D59: 91.1.00.60001 | E59: 853 | F59: =35+20 -> 55.0
A60: Исполнение судебных актов | B60: 01 | C60: 04 | D60: 91.1.00.60001 | E60: 830 | F60: =F61 -> 230.3
A61: Исполнение судебных актов Российской Федерации и мировых соглашений по возмещению вреда, причиненного в результате незаконных действий (бездействия) органов государственной власти (государственных органов), органов местного самоуправления либо должностных лиц этих органов, а также в результате деятельности казенных учреждений | B61: 01 | C61: 04 | D61: 91.1.00.60001 | E61: 831 | F61: =125.3+105 -> 230.3
A62: Непрограммные расходы органов местного самоуправления за счет средств областного бюджета | B62: 01 | C62: 04 | D62: 91.2.00.00000 | E62: 000 | F62: =F71+F63 -> 0.7
A63: Субсидии на выравнивание обеспеченности муниципальных образований Иркутской области по реализации ими их отдельных расходных обязательств | B63: 01 | C63: 04 | D63: 91.2.00.72600 | E63: 000 | F63: =F64+F68 -> 0.0
A64: Расходы на выплаты персоналу в целях обеспечения выполнения функций государственными (муниципальными) органами, казенными учреждениями, органами управления государственными внебюджетными фондами | B64: 01 | C64: 04 | D64: 91.2.00.72600 | E64: 100 | F64: =F65 -> 0.0
A65: Расходы на выплаты персоналу государственных (муниципальных) органов | B65: 01 | C65: 04 | D65: 91.2.00.72600 | E65: 120 | F65: =F66+F67 -> 0.0
A66: Фонд оплаты труда государственных (муниципальных) органов | B66: 01 | C66: 04 | D66: 91.2.00.72600 | E66: 121 | F66: 0.0
A67: Взносы по обязательному социальному страхованию на выплаты денежного содержания и иные выплаты работникам государственных (муниципальных) органов | B67: 01 | C67: 04 | D67: 91.2.00.72600 | E67: 129 | F67: 0.0
A68: Иные закупки товаров, работ и услуг для обеспечения государственных (муниципальных) нужд | B68: 01 | C68: 04 | D68: 91.2.00.72600 | E68: 200 | F68: =F69 -> 0.0
A69: Прочая закупка товаров, работ и услуг для обеспечения государственных (муниципальных) нужд | B69: 01 | C69: 04 | D69: 91.2.00.72600 | E69: 240 | F69: =F70 -> 0.0
A70: Прочая закупка товаров, работ и услуг для обеспечения государственных (муниципальных) нужд | B70: 01 | C70: 04 | D70: 91.2.00.72600 | E70: 244 | F70: 0.0
A71: Субвенции на осуществление областного государственного полномочия по определению перечня должностных лиц органов местного самоуправления, уполномоченных составлять протоколы об административных правонарушениях, предусмотренных отдельными законами Иркутской области об административной ответственности | B71: 01 | C71: 04 | D71: 91.2.00.73150 | E71: 000 | F71: =F74 -> 0.7
A72: Закупка товаров, работ и услуг для обеспечения государственных (муниципальных) нужд | B72: 01 | C72: 04 | D72: 91.2.00.73150 | E72: 200 | F72: =F73 -> 0.7
A73: Иные закупки товаров, работ и услуг для обеспечения государственных (муниципальных) нужд | B73: 01 | C73: 04 | D73: 91.2.00.73150 | E73: 240 | F73: =F74 -> 0.7
A74: Прочая закупка товаров, работ и услуг для обеспечения государственных (муниципальных) нужд | B74: 01 | C74: 04 | D74: 91.2.00.73150 | E74: 244 | F74: 0.7
A75: Обеспечение проведения выборов и референдумов | B75: 01 | C75: 07 | D75: 00.0.00.00000 | E75: 000 | F75: =F76 -> 0.0
A76: Непрограммные расходы органов местного самоуправления | B76: 01 | C76: 07 | D76: 91.0.00.00000 | E76: 000 | F76: 0.0
A77: Непрограммные расходы органов местного самоуправления за счет средств местного бюджета | B77: 01 | C77: 07 | D77: 91.1.00.00000 | E77: 000 | F77: 0.0
A78: Осуществление органами местного самоуправления полномочий местного значения поселения | B78: 01 | C78: 07 | D78: 91.1.00.60000 | E78: 000 | F78: 0.0
A79: Проведения выборов и референдумов | B79: 01 | C79: 07 | D79: 91.1.00.60003 | E79: 000 | F79: 0.0
A80: Закупка товаров, работ и услуг для обеспечения государственных (муниципальных) нужд | B80: 01 | C80: 07 | D80: 91.1.00.60003 | E80: 200 | F80: 0.0
A81: Иные закупки товаров, работ и услуг для обеспечения государственных (муниципальных) нужд | B81: 01 | C81: 07 | D81: 91.1.00.60003 | E81: 240 | F81: 0.0
A82: Прочая закупка товаров, работ и услуг для обеспечения государственных (муниципальных) нужд | B82: 01 | C82: 07 | D82: 91.1.00.60003 | E82: 244 | F82: 0.0
A83: Резервные фонды | B83: 01 | C83: 11 | D83: 00.0.00.00000 | E83: 000 | F83: =F84 -> 300.0
A84: Непрограммные расходы органов местного самоуправления | B84: 01 | C84: 11 | D84: 91.1.00.00000 | E84: 000 | F84: 300.0
A85: Непрограммные расходы органов местного самоуправления за счет средств местного бюджета | B85: 01 | C85: 11 | D85: 91.1.00.00000 | E85: 000 | F85: =F86 -> 300.0
A86: Осуществление органами местного самоуправления полномочий местного значения поселения | B86: 01 | C86: 11 | D86: 91.1.00.60000 | E86: 000 | F86: 300.0
A87: Резервный фонд администрации муниципального образования | B87: 01 | C87: 11 | D87: 91.1.00.60004 | E87: 000 | F87: 300.0
A88: Иные бюджетные ассигнования | B88: 01 | C88: 11 | D88: 91.1.00.60004 | E88: 800 | F88: 300.0
A89: Резервные средства | B89: 01 | C89: 11 | D89: 91.1.00.60004 | E89: 870 | F89: 300.0
A90: Другие общегосударственные вопросы | B90: 01 | C90: 13 | D90: 91.1.00.00000 | E90: 000 | F90: =F91 -> 2654.0
A91: Расходы на выплату персоналу в целях обеспечения выполнения функций государственными (муниципальными) органами, казенными учреждениями, органами управления государственными внебюджетными фондами | B91: 01 | C91: 13 | D91: 91.1.00.60002 | E91: 100 | F91: =F92+F93 -> 2654.0
A92: Расходы на выплаты персоналу в целях обеспечения выполнения функций государственными (муниципальными) органами, казенными учреждениями, органами управления государственными внебюджетными фондами | B92: 01 | C92: 13 | D92: 91.1.00.60002 | E92: 111 | F92: 2088.1
A93: Взносы по обязательному социальному страхованию на выплаты по оплате труда работников и иные выплаты работникам учреждений | B93: 01 | C93: 13 | D93: 91.1.00.60002 | E93: 119 | F93: 565.9
A94: НАЦИОНАЛЬНАЯ ОБОРОНА | B94: 02 | C94: 00 | D94: 00.0.00.00000 | E94: 000 | F94: =F99+F100+F101 -> 327.2
A95: Мобилизационная и вневойсковая подготовка | B95: 02 | C95: 03 | D95: 00.0.00.00000 | E95: 000 | F95: 327.2
A96: Непрограммные расходы органов местного самоуправления | B96: 02 | C96: 03 | D96: 91.0.00.00000 | E96: 000 | F96: 327.2
A97: Субвенции на осуществление первичного воинского учета на территориях, где отсутствуют военные комиссариаты | B97: 02 | C97: 03 | D97: 91.3.00.51180 | E97: 000 | F97: =F101+F98 -> 327.2
A98: Расходы на выплаты персоналу государственных (муниципальных) органов | B98: 02 | C98: 03 | D98: 91.3.00.51181 | E98: 120 | F98: =F99+F100 -> 322.2
A99: Фонд оплаты труда государственных (муниципальных) органов и взносы по обязательному социальному страхованию | B99: 02 | C99: 03 | D99: 91.3.00.51180 | E99: 121 | F99: 247.5
A100: Взносы по обязательному социальному страхованию на выплаты денежного содержания и иные выплаты работникам государственных (муниципальных) органов | B100: 02 | C100: 03 | D100: 91.3.00.51180 | E100: 129 | F100: 74.7
A101: Закупка товаров, работ и услуг для обеспечения государственных (муниципальных) нужд | B101: 02 | C101: 03 | D101: 91.3.00.51180 | E101: 200 | F101: 5.0
A102: Иные закупки товаров, работ и услуг для обеспечения государственных (муниципальных) нужд | B102: 02 | C102: 03 | D102: 91.3.00.51180 | E102: 240 | F102: 5.0
A103: Прочая закупка товаров, работ и услуг для обеспечения государственных (муниципальных) нужд | B103: 02 | C103: 03 | D103: 91.3.00.51180 | E103: 244 | F103: 5.0
A104: НАЦИОНАЛЬНАЯ БЕЗОПАСНОСТЬ И ПРАВООХРАНИТЕЛЬНАЯ ДЕЯТЕЛЬНОСТЬ | B104: 03 | C104: 00 | D104: 00.0.00.00000 | E104: 000 | F104: =F105 -> 350.0
A105: Обеспечение пожарной безопасности | B105: 03 | C105: 10 | D105: 00.0.00.00000 | E105: 000 | F105: 350.0
A106: Непрограммные расходы органов местного самоуправления | B106: 03 | C106: 10 | D106: 91.0.00.00000 | E106: 000 | F106: 350.0
A107: Непрограммные расходы органов местного самоуправления за счет средств местного бюджета | B107: 03 | C107: 10 | D107: 91.1.00.00000 | E107: 000 | F107: 350.0
A108: Осуществление органами местного самоуправления полномочий местного значения поселения | B108: 03 | C108: 10 | D108: 91.1.00.60000 | E108: 000 | F108: 350.0
A109: Реализация других функций, связанных с обеспечением национальной безопасности и правоохранительной деятельности | B109: 03 | C109: 10 | D109: 91.1.00.60007 | E109: 000 | F109: 350.0
A110: Закупка товаров, работ и услуг для обеспечения государственных (муниципальных) нужд | B110: 03 | C110: 10 | D110: 91.1.00.60007 | E110: 200 | F110: 350.0
A111: Иные закупки товаров, работ и услуг для обеспечения государственных (муниципальных) нужд | B111: 03 | C111: 10 | D111: 91.1.00.60007 | E111: 240 | F111: =F112 -> 350.0
A112: Прочая закупка товаров, работ и услуг для обеспечения государственных (муниципальных) нужд | B112: 03 | C112: 10 | D112: 91.1.00.60007 | E112: 244 | F112: 350.0
A113: НАЦИОНАЛЬНАЯ ЭКОНОМИКА | B113: 04 | C113: 00 | D113: 00.0.00.00000 | E113: 000 | F113: =F114+F124 -> 14296.3
A114: Дорожное хозяйство (дорожные фонды) | B114: 04 | C114: 09 | D114: 00.0.00.00000 | E114: 000 | F114: =F115 -> 10559.8
A115: Непрограммные расходы органов местного самоуправления | B115: 04 | C115: 09 | D115: 91.0.00.00000 | E115: 000 | F115: 10559.8
A116: Непрограммные расходы органов местного самоуправления за счет средств местного бюджета | B116: 04 | C116: 09 | D116: 91.1.00.00000 | E116: 000 | F116: 10559.8
A117: Осуществление органами местного самоуправления полномочий местного значения поселения | B117: 04 | C117: 09 | D117: 91.1.00.60000 | E117: 000 | F117: =F119 -> 10559.8
A118: Приобретение материальных и нематериальных активов в сфере установленных функций | B118: 04 | C118: 09 | D118: 91.1.00.60010 | E118: 000 | F118: =F120 -> 10559.8
A119: Иные мероприятия и сфере установленных функций | B119: 04 | C119: 09 | D119: 91.1.00.60011 | E119: 000 | F119: 10559.8
A120: Закупка товаров, работ и услуг для обеспечения государственных (муниципальных) нужд | B120: 04 | C120: 09 | D120: 91.1.00.60011 | E120: 200 | F120: 10559.8
A121: Иные закупки товаров, работ и услуг для обеспечения государственных (муниципальных) нужд | B121: 04 | C121: 09 | D121: 91.1.00.60011 | E121: 240 | F121: =F123+F122 -> 10559.8
A122: Закупка товаров, работ, услуг в целях капитального ремонта государственного (муниципального) имущества | B122: 04 | C122: 09 | D122: 91.1.00.60011 | E122: 243 | F122: =1960+1013.7 -> 2973.7
A123: Прочая закупка товаров, работ и услуг для обеспечения государственных (муниципальных) нужд | B123: 04 | C123: 09 | D123: 91.1.00.60011 | E123: 244 | F123: =5633.8+2966-1013.7 -> 7586.1
A124: Другие вопросы в области национальной экономике | B124: 04 | C124: 12 | D124: 00.0.00.00000 | E124: 000 | F124: =F125 -> 3736.5
A125: Непрограммные расходы органов местного самоуправления | B125: 04 | C125: 12 | D125: 91.1.00.00000 | E125: 000 | F125: 3736.5
A126: Непрограммные расходы органов местного самоуправления за счет средств местного бюджета | B126: 04 | C126: 12 | D126: 91.1.00.00000 | E126: 000 | F126: 3736.5
A127: Осуществление органами местного самоуправления полномочий местного значения поселения | B127: 04 | C127: 12 | D127: 91.1.00.60000 | E127: 000 | F127: =F129 -> 3736.5
A128: Приобретение материальных и нематериальных активов в сфере установленных функций | B128: 04 | C128: 12 | D128: 91.1.00.60010 | E128: 000 | F128: =F129 -> 3736.5
A129: Иные мероприятия и сфере установленных функций | B129: 04 | C129: 12 | D129: 91.1.00.60011 | E129: 000 | F129: 3736.5
A130: Закупка товаров, работ и услуг для обеспечения государственных (муниципальных) нужд | B130: 04 | C130: 12 | D130: 91.1.00.60011 | E130: 200 | F130: 3736.5
A131: Иные закупки товаров, работ и услуг для обеспечения государственных (муниципальных) нужд | B131: 04 | C131: 12 | D131: 91.1.00.60011 | E131: 240 | F131: =F133+F132 -> 3736.5
A132: Закупка товаров, работ, услуг в целях капитального ремонта государственного (муниципального) имущества | B132: 04 | C132: 12 | D132: 91.1.00.60011 | E132: 243 | F132: 873.7
A133: Прочая закупка товаров, работ и услуг для обеспечения государственных (муниципальных) нужд | B133: 04 | C133: 12 | D133: 91.1.00.60011 | E133: 244 | F133: =8829.3-2966+999.5-4000 -> 2862.8
A134: ЖИЛИЩНО-КОММУНАЛЬНОЕ ХОЗЯЙСТВО | B134: 05 | C134: 00 | D134: 00.0.00.00000 | E134: 000 | F134: =F135+F143+F151 -> 27122.4
A135: Жилищное хозяйство | B135: 05 | C135: 01 | D135: 00.0.00.00000 | E135: 000 | F135: =F136 -> 6040.0
A136: Непрограммные расходы органов местного самоуправления | B136: 05 | C136: 01 | D136: 91.0.00.00000 | E136: 000 | F136: 6040.0
A137: Непрограммные расходы органов местного самоуправления за счет средств местного бюджета | B137: 05 | C137: 01 | D137: 91.1.00.00000 | E137: 000 | F137: 6040.0
A138: Осуществление органами местного самоуправления полномочий местного значения поселения | B138: 05 | C138: 01 | D138: 91.1.00.60000 | E138: 000 | F138: 6040.0
A139: Строительство, реконструкция, капитальный ремонт в сфере установленных функций | B139: 05 | C139: 01 | D139: 91.1.00.60008 | E139: 000 | F139: 6040.0
A140: Закупка товаров, работ и услуг для обеспечения государственных (муниципальных) нужд | B140: 05 | C140: 01 | D140: 91.1.00.60008 | E140: 200 | F140: 6040.0
A141: Иные закупки товаров, работ и услуг для обеспечения государственных (муниципальных) нужд | B141: 05 | C141: 01 | D141: 91.1.00.60008 | E141: 240 | F141: 6040.0
A142: Закупка товаров, работ, услуг в целях капитального ремонта государственного (муниципального) имущества | B142: 05 | C142: 01 | D142: 91.1.00.60008 | E142: 243 | F142: =40+6000 -> 6040.0
A143: Коммунальное хозяйство | B143: 05 | C143: 02 | D143: 00.0.00.00000 | E143: 000 | F143: =F144 -> 6997.7
A144: Непрограммные расходы органов местного самоуправления | B144: 05 | C144: 02 | D144: 91.0.00.00000 | E144: 000 | F144: =F146 -> 6997.7
A145: Непрограммные расходы органов местного самоуправления за счет средств местного бюджета | B145: 05 | C145: 02 | D145: 91.1.00.00000 | E145: 000 | F145: =F146 -> 6997.7
A146: Осуществление органами местного самоуправления полномочий местного значения поселения | B146: 05 | C146: 02 | D146: 91.1.00.60000 | E146: 000 | F146: =F147 -> 6997.7
A147: Иные мероприятия и сфере установленных функций | B147: 05 | C147: 02 | D147: 91.1.00.60011 | E147: 000 | F147: =F148 -> 6997.7
A148: Закупка товаров, работ и услуг для обеспечения государственных (муниципальных) нужд | B148: 05 | C148: 02 | D148: 91.1.00.60011 | E148: 200 | F148: =F149 -> 6997.7
A149: Иные закупки товаров, работ и услуг для обеспечения государственных (муниципальных) нужд | B149: 05 | C149: 02 | D149: 91.1.00.60011 | E149: 240 | F149: =F150 -> 6997.7
A150: Прочая закупка товаров, работ и услуг для обеспечения государственных (муниципальных) нужд | B150: 05 | C150: 02 | D150: 91.1.00.60011 | E150: 244 | F150: =7400+1000+0.3+0.4-6800+6800-4000-2500+4000+1097 -> 6997.7
A151: Благоустройство | B151: 05 | C151: 03 | D151: 00.0.00.00000 | E151: 000 | F151: =F152 -> 14084.7
A152: Непрограммные расходы органов местного самоуправления | B152: 05 | C152: 03 | D152: 91.0.00.00000 | E152: 000 | F152: =F153 -> 14084.7
A153: Непрограммные расходы органов местного самоуправления за счет средств местного бюджета | B153: 05 | C153: 03 | D153: 91.1.00.00000 | E153: 000 | F153: =F154 -> 14084.7
A154: Осуществление органами местного самоуправления полномочий местного значения поселения | B154: 05 | C154: 03 | D154: 91.1.00.60000 | E154: 000 | F154: =F155 -> 14084.7
A155: Мероприятия в области жилищно-коммунального хозяйства | B155: 05 | C155: 03 | D155: 91.1.00.60100 | E155: 000 | F155: =F156+F162+F172 -> 14084.7
A156: Уличное освещение | B156: 05 | C156: 03 | D156: 91.1.00.60101 | E156: 000 | F156: =F157+F160 -> 3362.3
A157: Закупка товаров, работ и услуг для обеспечения государственных (муниципальных) нужд | B157: 05 | C157: 03 | D157: 91.1.00.60101 | E157: 200 | F157: =F158 -> 3362.3
A158: Иные закупки товаров, работ и услуг для обеспечения государственных (муниципальных) нужд | B158: 05 | C158: 03 | D158: 91.1.00.60101 | E158: 240 | F158: =F159 -> 3362.3
A159: Прочая закупка товаров, работ и услуг для обеспечения государственных (муниципальных) нужд | B159: 05 | C159: 03 | D159: 91.1.00.60101 | E159: 244 | F159: =1362.3+600+400+1000 -> 3362.3
A160: Иные бюджетные ассигнования | B160: 05 | C160: 03 | D160: 91.1.00.60101 | E160: 800 | F160: =F161 -> 0.0
A161: Уплата иных платежей | B161: 05 | C161: 03 | D161: 91.1.00.60001 | E161: 853 | F161: 0.0
A162: Прочие мероприятия по благоустройству городских округов и поселений | B162: 05 | C162: 03 | D162: 91.1.00.60105 | E162: 000 | F162: =F163+F166 -> 10722.4
A163: Закупка товаров, работ и услуг для обеспечения государственных (муниципальных) нужд | B163: 05 | C163: 03 | D163: 91.1.00.60105 | E163: 200 | F163: =F164 -> 8222.4
A164: Иные закупки товаров, работ и услуг для обеспечения государственных (муниципальных) нужд | B164: 05 | C164: 03 | D164: 91.1.00.60105 | E164: 240 | F164: =F165 -> 8222.4
A165: Прочая закупка товаров, работ и услуг для обеспечения государственных (муниципальных) нужд | B165: 05 | C165: 03 | D165: 91.1.00.60105 | E165: 244 | F165: =7472.4-1000+4000-1000-153-1097 -> 8222.4
A166: Непрограммные расходы органов местного самоуправления за счет средств областного бюджета | B166: 05 | C166: 03 | D166: 91.4.00.S2370 | E166: 000 | F166: =F167 -> 2500.0
A167: Субсидии на реализацию мероприятий перечня проектов народных инициатив за счет областного бюджета | B167: 05 | C167: 03 | D167: 91.4.00.S2370 | E167: 000 | F167: =F168 -> 2500.0
A168: Закупка товаров, работ и услуг для обеспечения государственных (муниципальных) нужд | B168: 05 | C168: 03 | D168: 91.4.00.S2370 | E168: 200 | F168: =F169 -> 2500.0
A169: Иные закупки товаров, работ и услуг для обеспечения государственных (муниципальных) нужд | B169: 05 | C169: 03 | D169: 91.4.00.S2370 | E169: 240 | F169: =F170 -> 2500.0
A170: Прочая закупка товаров, работ и услуг для обеспечения государственных (муниципальных) нужд | B170: 05 | C170: 03 | D170: 91.4.00.S2370 | E170: 244 | F170: =2250+250-250+250 -> 2500.0
A171: Субсидии юридическим лицам (кроме некоммерческих организаций), индивидуальным предпринимателям, физическим лицам – производителям товаров, работ, услуг | B171: 05 | C171: 03 | D171: 91.1.00.60100 | E171: 810 | F171: =F172 -> 0.0
A172: Субсидии на возмещение недополученных доходов и (или) возмещение фактически понесенных затрат в связи с производством (реализацией) товаров, выполнением работ, оказанием услуг | B172: 05 | C172: 03 | D172: 91.1.00.60105 | E172: 811 | F172: 0.0
A173: КУЛЬТУРА, КИНЕМАТОГРАФИЯ | B173: 08 | C173: 00 | D173: 00.0.00.00000 | E173: 000 | F173: =F174 -> 22947.2
A174: КУЛЬТУРА | B174: 08 | C174: 01 | D174: 91.0.00.00000 | E174: 000 | F174: =F175+F181+F188 -> 22947.2
A175: Непрограммные расходы органов местного самоуправления | B175: 08 | C175: 01 | D175: 91.1.00.00000 | E175: 000 | F175: =F176 -> 13824.0
A176: Осуществление органами местного самоуправления полномочий местного значения поселения | B176: 08 | C176: 01 | D176: 91.1.00.60002 | E176: 000 | F176: =F177 -> 13824.0
A177: Расходы на выплату персоналу в целях обеспечения выполнения функций государственными (муниципальными) органами, казенными учреждениями, органами управления государственными внебюджетными фондами | B177: 08 | C177: 01 | D177: 91.1.00.60002 | E177: 100 | F177: =F178 -> 13824.0
A178: Расходы на выплату персоналу казенных учреждений | B178: 08 | C178: 01 | D178: 91.1.00.60002 | E178: 110 | F178: =F179+F180 -> 13824.0
A179: Фонд оплаты труда казенных учреждений и взносы по обязательному социальному страхованию | B179: 08 | C179: 01 | D179: 91.1.00.60002 | E179: 111 | F179: =10659-2088.1+1396+460.8 -> 10427.7
A180: Взносы по обязательному социальному страхованию на выплаты по оплате труда работников и иные выплаты работникам учреждений | B180: 08 | C180: 01 | D180: 91.1.00.60002 | E180: 119 | F180: =3219-565.9+604+139.2 -> 3396.3
A181: Непрограммные расходы органов местного самоуправления | B181: 08 | C181: 01 | D181: 91.0.00.00000 | E181: 000 | F181: =F182 -> 8990.2
A182: Непрограммные расходы органов местного самоуправления за счет средств местного бюджета | B182: 08 | C182: 01 | D182: 91.1.00.00000 | E182: 000 | F182: 8990.2
A183: Осуществление органами местного самоуправления полномочий местного значения поселения | B183: 08 | C183: 01 | D183: 91.1.00.60000 | E183: 000 | F183: 8990.2
A184: Обеспечение деятельности в сфере установленных функции бюджетных, автономных и казенных учреждений | B184: 08 | C184: 01 | D184: 91.1.00.60002 | E184: 000 | F184: 8990.2
A185: Закупка товаров, работ и услуг для обеспечения государственных (муниципальных) нужд | B185: 08 | C185: 01 | D185: 91.1.00.60002 | E185: 200 | F185: 8990.2
A186: Иные закупки товаров, работ и услуг для обеспечения государственных (муниципальных) нужд | B186: 08 | C186: 01 | D186: 91.1.00.60002 | E186: 240 | F186: 8990.2
A187: Прочая закупка товаров, работ и услуг для обеспечения государственных (муниципальных) нужд | B187: 08 | C187: 01 | D187: 91.1.00.60002 | E187: 244 | F187: =3373.2+600-12+450+400-21+1000-100+800+2500 -> 8990.2
A188: Иные бюджетные ассигнования | B188: 08 | C188: 01 | D188: 91.1.00.60002 | E188: 850 | F188: =F190+F189 -> 133.0
A189: Уплата прочих налогов, сборов | B189: 08 | C189: 01 | D189: 91.1.00.60002 | E189: 852 | F189: 8.0
A190: Уплата иных платежей | B190: 08 | C190: 01 | D190: 91.1.00.60002 | E190: 853 | F190: =25+100 -> 125.0
A191: СОЦИАЛЬНАЯ ПОЛИТИКА | B191: 10 | C191: 00 | D191: 00.0.00.00000 | E191: 000 | F191: =F192 -> 244.7
A192: Пенсионное обеспечение | B192: 10 | C192: 01 | D192: 00.0.00.00000 | E192: 000 | F192: 244.7
A193: Непрограммные расходы органов местного самоуправления | B193: 10 | C193: 01 | D193: 91.0.00.00000 | E193: 000 | F193: 244.7
A194: Непрограммные расходы органов местного самоуправления за счет средств местного бюджета | B194: 10 | C194: 01 | D194: 91.1.00.00000 | E194: 000 | F194: 244.7
A195: Осуществление органами местного самоуправления полномочий местного значения поселения | B195: 10 | C195: 01 | D195: 91.1.00.60000 | E195: 000 | F195: 244.7
A196: Доплаты к пенсиям муниципальных служащих | B196: 10 | C196: 01 | D196: 91.1.00.60018 | E196: 000 | F196: 244.7
A197: Социальное обеспечение и иные выплаты населению | B197: 10 | C197: 01 | D197: 91.1.00.60018 | E197: 300 | F197: 244.7
A198: Публичные нормативные социальные выплаты гражданам | B198: 10 | C198: 01 | D198: 91.1.00.60018 | E198: 310 | F198: 244.7
A199: Иные пенсии, социальные доплаты к пенсиям | B199: 10 | C199: 01 | D199: 91.1.00.60018 | E199: 312 | F199: 244.7
A200: ФИЗИЧЕСКАЯ КУЛЬТУРА И СПОРТ | B200: 11 | C200: 00 | D200: 00.0.00.00000 | E200: 000 | F200: =F201 -> 
A201: Другие вопросы в области физической культуры и спорта | B201: 11 | C201: 05 | D201: 00.0.00.00000 | E201: 000
A202: Непрограммные расходы органов местного самоуправления | B202: 11 | C202: 05 | D202: 91.0.00.00000 | E202: 000
... 20 more rows
